fUST/lending_fUST_20240531
["ID","MTS","AMOUNT","RATE_DAILY","PERIOD"]
[328312773,1717147841552,-151.0,0.0002382,2]
[328312774,1717147841562,-2601.16474277,0.0002385,2]
[328312775,1717147841571,-153.692727,0.0002385,2]
[328312776,1717147841581,-151.0,0.0002385,2]
[328312777,1717147841590,-151.0,0.0002385,2]
[328312778,1717147841599,-194.926011,0.0002385,2]
[328312779,1717147841609,-151.0,0.0002385,2]
[328312780,1717147841619,-255.385865,0.0002385,2]
[328312781,1717147841628,-151.0,0.0002385,2]
[328312782,1717147841637,-151.0,0.0002385,2]
[328312783,1717147841646,-151.0,0.0002385,2]
[328312784,1717147841656,-155.426453,0.0002385,2]
[328312785,1717147841666,-155.426453,0.0002385,2]
[328312786,1717147841677,-155.426453,0.0002385,2]
[328312787,1717147841688,-155.426453,0.0002385,2]
[328312788,1717147841697,-155.426453,0.0002385,2]
[328312789,1717147841706,-155.426453,0.0002385,2]
[328312790,1717147841716,-1041.45578,0.0002385,2]
[328312791,1717147841725,-1041.45578,0.0002385,2]
[328312792,1717147841738,-1041.45578,0.0002385,2]
[328312793,1717147841747,-1041.45578,0.0002385,2]
[328312794,1717147841755,-1041.45578,0.0002385,2]
[328312795,1717147841765,-1041.45578,0.0002385,2]
[328312796,1717147841775,-145.49609206,0.0002385,2]
[328312797,1717147841791,-5.50390794,0.0002385,2]
[328312798,1717147841800,-151.0,0.0002385,2]
[328312799,1717147841809,-151.0,0.0002385,2]
[328312800,1717147841820,-204.358711,0.0002385,2]
[328312801,1717147841830,-167.6,0.00023865,5]
[328312802,1717147841840,-600.0,0.00023883,2]
[328312803,1717147841851,-155.426453,0.000239,2]
[328312804,1717147841862,-155.426453,0.000239,2]
[328312805,1717147841872,-1041.45578,0.000239,2]
[328312806,1717147841881,-1041.45578,0.000239,2]
[328312807,1717147841891,-576.71460393,0.000239,2]
[328312808,1717147841901,-204.8553096,0.00023939,2]
[328312809,1717147841910,-166.666666,0.00023969,2]
[328312810,1717147841920,-411.61800961,0.00023984,2]
[328312811,1717147841929,-500.0,0.00023984,2]
[328312812,1717147841938,-500.0,0.00023984,2]
[328312813,1717147841947,-500.0,0.00023984,2]
[328312814,1717147841955,-267.11832592,0.00023984,2]
[328312874,1717147843270,-232.88167408,0.00023984,2]
[328312875,1717147843290,-500.0,0.00023984,2]
[328312876,1717147843309,-500.0,0.00023984,2]
[328312877,1717147843322,-500.0,0.00023984,2]
[328312878,1717147843342,-500.0,0.00023984,2]
[328312879,1717147843356,-107.10664309,0.00023984,2]
[328312880,1717147843380,-392.89335691,0.00023984,2]
[328312881,1717147843396,-500.0,0.00023984,2]
[328312882,1717147843410,-500.0,0.00023984,2]
[328312883,1717147843426,-500.0,0.00023984,2]
[328312884,1717147843441,-500.0,0.00023984,2]
[328312885,1717147843455,-583.69337529,0.00023984,2]
[328312886,1717147843470,-500.0,0.00023984,2]
[328312887,1717147843485,-668.88,0.00023985,3]
[328312888,1717147843500,-151.0,0.0002399,2]
[328312889,1717147843515,-1345.55247877,0.00023995,2]
[328312890,1717147843531,-155.426453,0.00023999,2]
[328312891,1717147843546,-155.426453,0.00023999,2]
[328312892,1717147843562,-155.426453,0.00023999,2]
[328312893,1717147843576,-155.426453,0.00023999,2]
[328312894,1717147843591,-155.426453,0.00023999,2]
[328312895,1717147843605,-155.426453,0.00023999,2]
[328312896,1717147843620,-1041.45578,0.00023999,2]
[328312897,1717147843634,-1041.45578,0.00023999,2]
[328312898,1717147843649,-1041.45578,0.00023999,2]
[328312899,1717147843667,-1041.45578,0.00023999,2]
[328312900,1717147843681,-1041.45578,0.00023999,2]
[328312901,1717147843696,-1041.45578,0.00023999,2]
[328312902,1717147843710,-4767.16617191,0.00024,2]
[328312903,1717147843725,-7056.98599401,0.00024,2]
[328312904,1717147843743,-958.93150569,0.00024,2]
[328312916,1717148053900,1050.84,0.00028,120]
[328312918,1717148192331,273.37336231,9.9e-05,2]
[328312919,1717148200300,273.37336231,9.9e-05,2]
[328312926,1717148781673,20000.0,0.00028,120]
[328312927,1717148794316,20000.0,0.000275,30]
[328312933,1717148881562,20000.0,0.00028,120]
[328312934,1717148897663,273.37336231,9.9e-05,2]
[328313033,1717149038308,-1520.35616458,0.00021092,2]
[328313035,1717149038320,-2259.46578678,0.00021092,2]
[328313036,1717149038330,-166.666666,0.00021954,2]
[328313037,1717149038339,-3717.26283507,0.00022345,2]
[328313143,1717149044929,-5505.58700493,0.00022345,2]
[328313144,1717149044940,-204.8553096,0.000233,2]
[328313145,1717149044950,-150.0,0.00023393,2]
[328313146,1717149044958,-209.796,0.0002342,2]
[328313147,1717149044967,-166.666666,0.0002345,2]
[328313148,1717149044976,-235.29734044,0.00023564,2]
[328313149,1717149044987,-4231.65194067,0.00023714,2]
[328313150,1717149044997,-306.0,0.00023786,2]
[328313151,1717149045006,-306.0,0.00023786,2]
[328313152,1717149045016,-600.0,0.00023883,2]
[328313153,1717149045026,-4000.0,0.000239,2]
[328313154,1717149045035,-311.7531816,0.00023939,2]
[328313155,1717149045044,-7471.36799676,0.00024,2]
[328313157,1717149046391,-118.52312555,0.00024,2]
[328313158,1717149046401,-282.0,0.00024,2]
[328313159,1717149046411,-958.13687445,0.00024,7]
[328313163,1717149069846,1723.28099482,9.9e-05,2]
[328313172,1717150063844,169.19296922,9.9e-05,2]
[328313198,1717150232664,-192.23820131,0.000189,2]
[328313199,1717150232674,-151.0,0.00022026,3]
[328313201,1717150232684,-166.666666,0.00022313,2]
[328313202,1717150232694,-151.0,0.00022745,3]
[328313203,1717150232703,-151.0,0.00023464,5]
[328313204,1717150232712,-153.0,0.00023568,2]
[328313205,1717150232722,-153.0,0.000236,2]
[328313206,1717150232731,-153.0,0.000236,2]
[328313207,1717150232740,-153.0,0.000236,2]
[328313208,1717150232750,-153.0,0.000236,2]
[328313209,1717150232760,-153.0,0.000236,2]
[328313210,1717150232769,-153.0,0.000236,2]
[328313211,1717150232779,-153.0,0.000236,2]
[328313212,1717150232789,-1076.48762468,0.00023764,2]
[328313213,1717150232798,-600.0,0.00023883,2]
[328313214,1717150232808,-153.0,0.000239,2]
[328313215,1717150232817,-153.0,0.000239,2]
[328313216,1717150232826,-153.0,0.000239,2]
[328313217,1717150232835,-342.6372315,0.000239,2]
[328313218,1717150232845,-306.0,0.000239,2]
[328313219,1717150232855,-306.0,0.000239,2]
[328313220,1717150232864,-192.23820131,0.000239,2]
[328313221,1717150232873,-165.89523817,0.00024,7]
[328313244,1717150238637,-708.45228,0.00024,7]
[328313245,1717150238647,-8294.55698753,0.00024,7]
[328313246,1717150238660,-27583.25747188,0.00024,7]
[328313247,1717150238672,-7056.98599401,0.00024,2]
[328313249,1717150238682,-282.0,0.00024,2]
[328313250,1717150238692,-1000.0,0.00024,8]
[328313251,1717150238702,-600.0,0.00024132,2]
[328313252,1717150238712,-151.0,0.00024183,5]
[328313253,1717150238722,-1012.41072917,0.0002438,2]
[328313254,1717150238732,-291.9275846,0.00024517,2]
[328313255,1717150238741,-291.9275846,0.00024517,2]
[328313256,1717150238751,-291.9275846,0.00024517,2]
[328313257,1717150238761,-291.9275846,0.00024517,2]
[328313258,1717150238770,-291.9275846,0.00024517,2]
[328313259,1717150238780,-291.9275846,0.00024517,2]
[328313260,1717150238790,-291.9275846,0.00024517,2]
[328313261,1717150238799,-291.9275846,0.00024517,2]
[328313262,1717150238809,-291.9275846,0.00024517,2]
[328313264,1717150238818,-583.8551692,0.00024517,2]
[328313265,1717150238828,-450.4899355,0.00024517,2]
[328313266,1717150238838,-295.8266131,0.00024517,2]
[328313267,1717150238847,-291.9275846,0.00024517,2]
[328313268,1717150238857,-291.9275846,0.00024517,2]
[328313269,1717150238867,-397.89278288,0.000247,2]
[328313270,1717150238876,-2000.0,0.000247,2]
[328313271,1717150238886,-153.0,0.00024718,2]
[328313272,1717150238896,-153.0,0.00024718,2]
[328313273,1717150238906,-153.0,0.00024718,2]
[328313274,1717150238916,-153.0,0.00024718,2]
[328313275,1717150238926,-153.0,0.00024718,2]
[328313276,1717150238946,-153.0,0.00024718,2]
[328313277,1717150238963,-153.0,0.00024718,2]
[328313278,1717150238982,-153.0,0.00024718,2]
[328313279,1717150239002,-153.0,0.00024718,2]
[328313280,1717150239025,-153.0,0.00024718,2]
[328313281,1717150239045,-397.89278284,0.0002472,2]
[328313282,1717150239065,-397.89278284,0.00024739,2]
[328313283,1717150239082,-397.89278284,0.00024759,2]
[328313284,1717150239098,-151.0,0.00024768,2]
[328313285,1717150239117,-151.0,0.00024768,2]
[328313286,1717150239137,-151.0,0.00024768,2]
[328313287,1717150239154,-151.0,0.00024768,2]
[328313288,1717150239172,-151.0,0.00024768,2]
[328313289,1717150239190,-151.0,0.00024768,2]
[328313290,1717150239207,-151.0,0.00024768,2]
[328313291,1717150239223,-151.0,0.00024778,2]
[328313292,1717150239237,-397.89278284,0.00024778,2]
[328313293,1717150239255,-151.0,0.00024778,2]
[328313294,1717150239270,-151.0,0.00024778,2]
[328313295,1717150239286,-151.0,0.00024778,2]
[328313296,1717150239301,-564.0,0.000248,2]
[328313297,1717150239317,-564.0,0.000248,2]
[328313298,1717150239333,-17627.30571579,0.000248,2]
[328313299,1717150239437,-1058.862999,0.000248,2]
[328313300,1717150239456,-2311.25375395,0.000248,2]
[328313301,1717150239474,-151.0,0.000248,2]
[328313302,1717150239491,-151.0,0.000248,2]
[328313303,1717150239506,-151.0,0.000248,2]
[328313304,1717150239523,-151.0,0.000248,2]
[328313305,1717150239540,-151.0,0.000248,2]
[328313306,1717150239555,-151.0,0.000248,2]
[328313307,1717150239572,-487.0,0.000248,2]
[328313308,1717150239588,-151.0,0.000248,2]
[328313309,1717150239604,-151.0,0.000248,2]
[328313310,1717150239621,-181.858336,0.000248,2]
[328313311,1717150239636,-151.0,0.000248,2]
[328313312,1717150239651,-151.0,0.00024846,2]
[328313313,1717150239668,-151.0,0.00024856,2]
[328313314,1717150239683,-148.23494718,0.00024865,2]
[328313408,1717150248897,-291.9275846,0.00024517,2]
[328313410,1717150248908,-2.76505282,0.00024865,2]
[328313412,1717150248917,-7732.82133523,0.00024866,3]
[328313422,1717151186341,9999.999999,9.99e-05,5]
[328313449,1717151432783,-150.0,0.000189,2]
[328313451,1717151432792,-1179.44383277,0.0002,5]
[328313452,1717151432802,-151.0,0.00022897,3]
[328313454,1717151432811,-176.73991099,0.00023,6]
[328313456,1717151432820,-151.0,0.00023597,5]
[328313458,1717151432831,-3030.11406356,0.00024,2]
[328313896,1717151444464,-4026.87193045,0.00024,2]
[328313897,1717151444474,-151.0,0.00024297,5]
[328313898,1717151444484,-10841.0,0.00024768,3]
[328313899,1717151444493,-102.54110862,0.00024768,3]
[328313903,1717151447133,-12635.07889138,0.00024768,3]
[328313904,1717151447142,-10614.68,0.00024768,3]
[328313905,1717151447152,-500.0,0.00024777,2]
[328313906,1717151447161,-500.0,0.00024777,2]
[328313907,1717151447171,-500.0,0.00024777,2]
[328313908,1717151447180,-500.0,0.00024777,2]
[328313909,1717151447189,-500.0,0.00024777,2]
[328313910,1717151447199,-500.0,0.00024777,2]
[328313911,1717151447209,-500.0,0.00024777,2]
[328313912,1717151447218,-500.0,0.00024777,2]
[328313913,1717151447228,-500.0,0.00024777,2]
[328313914,1717151447237,-500.0,0.00024777,2]
[328313915,1717151447246,-500.0,0.00024777,2]
[328313916,1717151447256,-500.0,0.00024777,2]
[328313917,1717151447265,-500.0,0.00024777,2]
[328313918,1717151447274,-500.0,0.00024777,2]
[328313919,1717151447284,-500.0,0.00024777,2]
[328313920,1717151447294,-500.0,0.00024777,2]
[328313921,1717151447303,-500.0,0.00024777,2]
[328313922,1717151447312,-500.0,0.00024777,2]
[328313923,1717151447322,-500.0,0.00024777,2]
[328313924,1717151447331,-500.0,0.00024777,2]
[328313925,1717151447340,-500.0,0.00024777,2]
[328313926,1717151447350,-500.0,0.00024777,2]
[328313927,1717151447359,-500.0,0.00024777,2]
[328313928,1717151447368,-500.0,0.00024777,2]
[328313929,1717151447378,-500.0,0.00024777,2]
[328313930,1717151447387,-500.0,0.00024777,2]
[328313931,1717151447396,-500.0,0.00024777,2]
[328313932,1717151447405,-500.0,0.00024777,2]
[328313933,1717151447415,-500.0,0.00024777,2]
[328313934,1717151447424,-500.0,0.00024777,2]
[328313935,1717151447434,-500.0,0.00024777,2]
[328313936,1717151447443,-500.0,0.00024777,2]
[328313937,1717151447452,-500.0,0.00024777,2]
[328313938,1717151447461,-593.55753574,0.00024777,2]
[328313939,1717151447470,-790.31221304,0.00024777,2]
[328313940,1717151447479,-790.31221304,0.00024777,2]
[328313941,1717151447489,-790.31221304,0.00024777,2]
[328313942,1717151447499,-790.31221304,0.00024777,2]
[328313943,1717151447508,-790.31221304,0.00024777,2]
[328313944,1717151447517,-790.31221304,0.00024777,2]
[328313945,1717151447526,-790.31221304,0.00024777,2]
[328313946,1717151447535,-790.31221304,0.00024777,2]
[328313947,1717151447544,-790.31221304,0.00024777,2]
[328313948,1717151447553,-790.31221304,0.00024777,2]
[328313949,1717151447562,-790.31221304,0.00024777,2]
[328313950,1717151447571,-790.31221304,0.00024777,2]
[328313951,1717151447580,-790.31221304,0.00024777,2]
[328313952,1717151447589,-790.31221304,0.00024777,2]
[328313953,1717151447597,-790.31221304,0.00024777,2]
[328313954,1717151447606,-790.31221304,0.00024777,2]
[328313955,1717151447615,-790.31221304,0.00024777,2]
[328313956,1717151447624,-790.31221304,0.00024777,2]
[328313957,1717151447633,-767.29762662,0.00024777,2]
[328313958,1717151447641,-767.29762662,0.00024777,2]
[328313959,1717151447650,-767.29762662,0.00024777,2]
[328313960,1717151447659,-767.29762662,0.00024777,2]
[328313961,1717151447668,-767.29762662,0.00024777,2]
[328313962,1717151447677,-767.29762662,0.00024777,2]
[328313963,1717151447686,-767.29762662,0.00024777,2]
[328313964,1717151447694,-767.29762662,0.00024777,2]
[328313965,1717151447704,-767.29762662,0.00024777,2]
[328313966,1717151447713,-767.29762662,0.00024777,2]
[328313967,1717151447722,-767.29762662,0.00024777,2]
[328313968,1717151447731,-767.29762662,0.00024777,2]
[328313969,1717151447740,-767.29762657,0.00024777,2]
[328313970,1717151447749,-437.17375908,0.00024778,7]
[328313971,1717151447757,-60312.9648581,0.00024778,3]
[328313974,1717151711374,1980.61773532,9.999e-05,2]
[328313975,1717151716828,10000.0,0.00028,120]
[328313976,1717151722858,529.43889661,9.999e-05,2]
[328313977,1717151727152,1499.09486295,9.999e-05,2]
[328313978,1717151735368,836.90882909,9.999e-05,2]
[328313979,1717151737538,154.93802479,9.999e-05,2]
[328313980,1717151741411,10000.0,0.0001,10]
[328313981,1717151742571,758.81052781,9.999e-05,2]
[328313982,1717151751636,216.01852232,9.999e-05,2]
[328313983,1717151763809,1903.13024359,9.999e-05,2]
[328313984,1717151785393,2092.66358583,9.999e-05,2]
[328313985,1717151794556,299.89191308,9.999e-05,2]
[328313986,1717151799168,2092.66358583,9.999e-05,2]
[328313987,1717151812552,417.58991617,9.999e-05,2]
[328313988,1717151821555,10000.0,0.000275,30]
[328313989,1717151825218,1355.1615134,9.999e-05,2]
[328313990,1717151838374,2906.47604325,9.999e-05,2]
[328313991,1717151856190,239.21076541,9.999e-05,2]
[328313992,1717151883128,156.68407224,9.999e-05,2]
[328313993,1717151899491,154.93802479,9.999e-05,2]
[328314000,1717152270337,267.03977808,9.999e-05,7]
[328314008,1717152494895,273.37336231,9.9e-05,2]
[328314009,1717152511138,273.37336231,9.9e-05,2]
[328314010,1717152520785,273.37336231,9.9e-05,2]
[328314020,1717152632414,-156.68407224,0.0001864,2]
[328314021,1717152632424,-1499.09486295,0.0001864,2]
[328314022,1717152632433,-154.95351395,0.00018641,2]
[328314023,1717152632443,-6064.07189529,0.00018641,2]
[328314024,1717152632455,-4462.09491931,0.00018641,2]
[328314025,1717152632465,-292.07469675,0.00018657,2]
[328314026,1717152632477,-24890.0,0.0001888,2]
[328314027,1717152632487,-528.16653539,0.0002,4]
[328314028,1717152632496,-4231.65194067,0.00024404,2]
[328314029,1717152632505,-153.0,0.00024551,2]
[328314030,1717152632514,-150.0,0.00024599,2]
[328314031,1717152632523,-153.0,0.000246,2]
[328314032,1717152632533,-1471.08503008,0.00024776,2]
[328314033,1717152632542,-295.94908936,0.00024777,2]
[328314034,1717152632552,-2000.0,0.00024778,2]
[328314035,1717152632562,-1000.0,0.000248,2]
[328314036,1717152632571,-282.0,0.000248,2]
[328314037,1717152632581,-564.0,0.000248,2]
[328314038,1717152632590,-599.0,0.000248,2]
[328314039,1717152632600,-325.4475907,0.000248,2]
[328314040,1717152632609,-153.0,0.000248,2]
[328314041,1717152632619,-153.0,0.000248,2]
[328314042,1717152632628,-6173.57306943,0.00024851,3]
[328314071,1717152642370,-1197.73693057,0.00024851,3]
[328314072,1717152642380,-6142.76,0.00024851,3]
[328314073,1717152642390,-5035.57627439,0.00024851,2]
[328314074,1717152642402,-2109.94083119,0.00024851,2]
[328314075,1717152642412,-1585.17651535,0.00024865,2]
[328314076,1717152642421,-8845.57,0.00024866,3]
[328314077,1717152642430,-5118.96,0.00024866,3]
[328314078,1717152642439,-151.0,0.00024875,2]
[328314079,1717152642448,-151.0,0.00024875,2]
[328314080,1717152642458,-500.0,0.00024875,2]
[328314081,1717152642468,-500.0,0.00024875,2]
[328314082,1717152642478,-500.0,0.00024875,2]
[328314083,1717152642487,-500.0,0.00024875,2]
[328314084,1717152642496,-500.0,0.00024875,2]
[328314085,1717152642505,-500.0,0.00024875,2]
[328314086,1717152642514,-500.0,0.00024875,2]
[328314087,1717152642524,-500.0,0.00024875,2]
[328314088,1717152642533,-500.0,0.00024875,2]
[328314089,1717152642542,-500.0,0.00024875,2]
[328314090,1717152642551,-500.0,0.00024875,2]
[328314091,1717152642560,-500.0,0.00024875,2]
[328314092,1717152642569,-500.0,0.00024875,2]
[328314093,1717152642578,-500.0,0.00024875,2]
[328314094,1717152642588,-500.0,0.00024875,2]
[328314095,1717152642597,-474.29463408,0.00024875,2]
[328314283,1717153708695,273.37336231,9.9e-05,2]
[328314284,1717153716654,273.37336231,9.9e-05,2]
[328314388,1717153838438,-156.68407224,0.00018899,2]
[328314389,1717153838448,-206.31760174,0.000189,2]
[328314390,1717153838458,-1499.09486295,0.00019999,2]
[328314391,1717153838468,-528.16653539,0.0002,4]
[328314392,1717153838478,-206.31760174,0.000239,2]
[328314393,1717153838487,-2431.50095019,0.00024778,3]
[328314403,1717153842866,-21987.83923022,0.00024778,3]
[328314425,1717153848679,-466.16787958,0.00024778,3]
[328314426,1717153848691,-3689.52708191,0.00024778,3]
[328314427,1717153848700,-282.0,0.000248,2]
[328314428,1717153848709,-4265.8,0.00024866,3]
[328314429,1717153848721,-155.00853349,0.00024874,2]
[328314430,1717153848730,-25.70536592,0.00024875,2]
[328314431,1717153848739,-500.0,0.00024875,2]
[328314432,1717153848749,-500.0,0.00024875,2]
[328314433,1717153848758,-500.0,0.00024875,2]
[328314434,1717153848768,-500.0,0.00024875,2]
[328314435,1717153848778,-500.0,0.00024875,2]
[328314436,1717153848786,-500.0,0.00024875,2]
[328314437,1717153848796,-500.0,0.00024875,2]
[328314438,1717153848805,-500.0,0.00024875,2]
[328314439,1717153848814,-500.0,0.00024875,2]
[328314440,1717153848824,-500.0,0.00024875,2]
[328314441,1717153848834,-500.0,0.00024875,2]
[328314442,1717153848843,-500.0,0.00024875,2]
[328314443,1717153848852,-282.6196032,0.00024875,2]
[328314444,1717153848861,-500.0,0.00024875,2]
[328314445,1717153848871,-500.0,0.00024875,2]
[328314446,1717153848880,-500.0,0.00024875,2]
[328314447,1717153848889,-6042.46870095,0.00024875,2]
[328314448,1717153881345,155.33312528,9.9e-05,2]
[328314451,1717153928909,179.26263733,9.999e-05,2]
[328314452,1717153929500,164.38618998,9.999e-05,2]
[328314537,1717155038883,-291.77473267,0.00018657,2]
[328314538,1717155038893,-150.0,0.00022775,2]
[328314539,1717155038903,-166.666666,0.00022959,2]
[328314540,1717155038913,-151.0,0.00023081,3]
[328314541,1717155038922,-151.0,0.00023758,5]
[328314542,1717155038932,-151.0,0.00024435,5]
[328314543,1717155038942,-151.0,0.00024435,5]
[328314544,1717155038951,-153.0,0.00024517,2]
[328314545,1717155038961,-263.3442329,0.00024517,2]
[328314546,1717155038972,-166.666666,0.00024524,2]
[328314547,1717155038982,-282.0,0.000248,2]
[328314548,1717155038992,-564.0,0.000248,2]
[328314549,1717155039002,-154.1114563,0.000248,2]
[328314550,1717155039016,-7054.01953135,0.00024849,2]
[328314551,1717155039027,-2057.2,0.00024865,3]
[328314552,1717155039037,-3211.97,0.00024865,3]
[328314553,1717155039048,-354.98623288,0.00024873,2]
[328314554,1717155039059,-17274.58153702,0.00024873,2]
[328314555,1717155039070,-218.58687954,0.00024874,7]
[328314556,1717155039202,-19275.03631944,0.00024874,2]
[328314557,1717155039241,-310.2755756,0.00024874,2]
[328314558,1717155039251,-310.66033141,0.00024874,2]
[328314559,1717155039262,-274.4473688,0.00024874,2]
[328314560,1717155039272,-500.0,0.00024874,2]
[328314561,1717155039281,-500.0,0.00024874,2]
[328314562,1717155039291,-500.0,0.00024874,2]
[328314563,1717155039300,-500.0,0.00024874,2]
[328314564,1717155039311,-500.0,0.00024874,2]
[328314565,1717155039321,-500.0,0.00024874,2]
[328314566,1717155039331,-500.0,0.00024874,2]
[328314567,1717155039340,-500.0,0.00024874,2]
[328314568,1717155039350,-500.0,0.00024874,2]
[328314569,1717155039359,-500.0,0.00024874,2]
[328314570,1717155039369,-500.0,0.00024874,2]
[328314571,1717155039379,-500.0,0.00024874,2]
[328314572,1717155039389,-500.0,0.00024874,2]
[328314573,1717155039398,-500.0,0.00024874,2]
[328314574,1717155039407,-500.0,0.00024874,2]
[328314575,1717155039417,-500.0,0.00024874,2]
[328314576,1717155039427,-500.0,0.00024874,2]
[328314577,1717155039436,-500.0,0.00024874,2]
[328314578,1717155039447,-500.0,0.00024874,2]
[328314579,1717155039457,-500.0,0.00024874,2]
[328314580,1717155039467,-500.0,0.00024874,2]
[328314581,1717155039476,-500.0,0.00024874,2]
[328314582,1717155039486,-579.68744318,0.00024874,2]
[328314583,1717155039495,-6788.44151826,0.00024875,2]
[328314584,1717155039505,-3985.31374501,0.00024875,2]
[328314585,1717155039514,-461.58335744,0.00024875,2]
[328314586,1717155039525,-528.5521856,0.00024875,4]
[328314587,1717155039535,-777.9902018,0.00024875,2]
[328314588,1717155039546,-187.40742713,0.00024875,2]
[328314589,1717155039556,-2141.14750707,0.00024875,2]
[328314590,1717155039566,-6849.23890006,0.00024875,2]
[328314591,1717155039575,-368.1502754,0.00024875,2]
[328314592,1717155039585,-163.641531,0.00024875,2]
[328314593,1717155039595,-4683.64,0.00024875,2]
[328314594,1717155039604,-4683.64,0.00024875,2]
[328314595,1717155039614,-4683.64,0.00024875,2]
[328314596,1717155039624,-4683.64,0.00024875,2]
[328314597,1717155039634,-4683.64,0.00024875,2]
[328314598,1717155039643,-4683.64,0.00024875,2]
[328314599,1717155039653,-151.0,0.00024875,2]
[328314600,1717155039663,-151.0,0.00024875,2]
[328314601,1717155039672,-151.0,0.00024875,2]
[328314602,1717155039682,-151.0,0.00024875,2]
[328314603,1717155039692,-151.0,0.00024875,2]
[328314604,1717155039701,-152.762407,0.00024875,2]
[328314605,1717155039712,-373.409432,0.00024875,2]
[328314606,1717155039722,-373.409432,0.00024875,2]
[328314607,1717155039732,-373.409432,0.00024875,2]
[328314608,1717155039742,-373.409432,0.00024875,2]
[328314609,1717155039752,-373.409432,0.00024875,2]
[328314610,1717155039762,-151.0,0.00024875,2]
[328314611,1717155039772,-373.409432,0.00024875,2]
[328314612,1717155039782,-151.0,0.00024875,2]
[328314613,1717155039792,-373.409432,0.00024875,2]
[328314614,1717155039802,-151.0,0.00024875,2]
[328314615,1717155039812,-373.409432,0.00024875,2]
[328314616,1717155039822,-151.0,0.00024875,2]
[328314617,1717155039831,-151.0,0.00024875,2]
[328314618,1717155039842,-151.0,0.00024875,2]
[328314619,1717155039852,-151.0,0.00024875,2]
[328314620,1717155039862,-151.0,0.00024875,2]
[328314621,1717155039872,-151.0,0.00024875,2]
[328314622,1717155039882,-243.129516,0.00024875,2]
[328314623,1717155039892,-151.0,0.00024875,2]
[328314624,1717155039901,-151.0,0.00024875,2]
[328314625,1717155039911,-122.82813055,0.00024875,2]
[328314665,1717155043155,-28.17186945,0.00024875,2]
[328314669,1717155043164,-151.0,0.00024875,2]
[328314672,1717155043174,-151.0,0.00024875,2]
[328314676,1717155043184,-151.0,0.00024875,2]
[328314678,1717155043194,-151.0,0.00024875,2]
[328314681,1717155043204,-151.0,0.00024875,2]
[328314683,1717155043213,-151.0,0.00024875,2]
[328314685,1717155043222,-151.0,0.00024875,2]
[328314686,1717155043232,-151.0,0.00024875,2]
[328314687,1717155043242,-300.247084,0.00024875,2]
[328314688,1717155043252,-151.0,0.00024875,2]
[328314689,1717155043262,-151.0,0.00024875,2]
[328314690,1717155043272,-151.0,0.00024875,2]
[328314691,1717155043283,-151.0,0.00024875,2]
[328314692,1717155043450,-151.0,0.00024875,2]
[328314693,1717155043460,-151.0,0.00024875,2]
[328314694,1717155043470,-90.04131083,0.00024875,2]
[328314695,1717155043483,-177.43243917,0.00024875,2]
[328314696,1717155043492,-267.47375,0.00024875,2]
[328314697,1717155043502,-267.47375,0.00024875,2]
[328314699,1717155043512,-267.47375,0.00024875,2]
[328314701,1717155043522,-267.47375,0.00024875,2]
[328314704,1717155043531,-267.47375,0.00024875,2]
[328314705,1717155043541,-267.47375,0.00024875,2]
[328314707,1717155043550,-267.47375,0.00024875,2]
[328314709,1717155043560,-267.47375,0.00024875,2]
[328314711,1717155043569,-267.47375,0.00024875,2]